bitfinex/quotes_ETHUSD_20250411
["timestamp","ask_amount","ask_price","bid_price","bid_amount"]
[1744335364826,6.51169,1535.7,1535.2,13.0273]
[1744335365166,6.51169,1535.7,1535.3,6.51337]
[1744335365350,13.02363,1535.7,1535.3,6.51337]
[1744335365552,6.51169,1535.7,1535.3,6.51337]
[1744335365957,13.02364,1535.7,1535.3,6.51337]
[1744335366253,6.51227,1535.6,1535.1,13.02811]
[1744335366442,6.51227,1535.6,1535.2,6.51371]
[1744335366865,13.02478,1535.6,1535.1,13.0281]
[1744335367067,6.51255,1535.5,1535.1,6.51405]
[1744335367272,6.51255,1535.5,1535.1,13.02807]
[1744335367436,6.51227,1535.6,1535.2,6.51377]
[1744335367631,13.02465,1535.6,1535.2,6.51377]
[1744335368131,6.51253,1535.5,1535.0,0.231074]
[1744335368336,1.302465,1535.6,1535.0,6.745654]
[1744335368337,6.51316,1535.4,1535.0,6.745654]
[1744335368638,13.02636,1535.4,1535.0,6.745654]
[1744335369040,6.51217,1535.6,1535.2,6.51359]
[1744335369374,6.51217,1535.6,1535.2,13.02717]
[1744335369679,6.5117,1535.7,1535.3,6.51324]
[1744335369976,6.5113,1535.8,1535.4,6.51254]
[1744335370143,6.51084,1535.9,1535.5,6.51236]
[1744335370477,6.50875,1536.4,1536.0,6.51039]
[1744335370773,13.01889,1536.3,1535.9,6.51081]
[1744335371129,6.50943,1536.3,1535.9,13.02142]
[1744335371338,13.01765,1536.4,1536.0,6.5102]
[1744335371533,6.50879,1536.4,1536.0,6.5102]
[1744335371838,6.51023,1536.1,1535.7,6.51164]
[1744335372172,6.51023,1536.1,1535.3,4.3323]
[1744335372173,6.51047,1536.0,1535.3,4.3323]
[1744335372357,13.02128,1536.0,1535.5,13.02476]
[1744335372548,13.02128,1536.0,1535.6,6.51196]
[1744335372549,6.51047,1536.0,1535.6,6.51196]
[1744335373842,6.51047,1536.0,1535.6,6.5119]
[1744335374150,6.51,1536.1,1535.7,6.51152]
[1744335374937,6.51025,1536.1,1535.7,6.51152]
[1744335375340,6.50956,1536.3,1535.9,6.51069]
[1744335375579,13.01774,1536.4,1536.0,6.5104]
[1744335375876,6.50932,1536.3,1535.9,13.02133]
[1744335376181,13.02042,1536.1,1535.7,1.3323]
[1744335376477,6.50961,1536.2,1535.8,13.02211]
[1744335376778,0.650709,1536.8,1536.2,1.3323]
[1744335376939,6.50738,1536.8,1536.4,6.50865]
[1744335377442,13.01466,1536.8,1536.4,6.50865]
[1744335377970,6.50745,1536.7,1536.4,6.50865]
[1744335378199,6.50745,1536.7,1536.5,0.15483405]
[1744335378711,6.50626,1537.0,1536.5,0.15483405]
[1744335378894,19.8431,1537.3,1536.9,6.50657]
[1744335379098,19.8431,1537.3,1537.0,0.15483405]
[1744335379099,6.50533,1537.2,1537.0,0.15483405]
[1744335379406,6.50658,1537.0,1536.7,1.3323]
[1744335379578,7.156838,1537.0,1536.8,0.15483405]
[1744335379780,6.50618,1537.0,1536.6,6.50786]
[1744335379984,6.50618,1537.0,1536.7,0.15483405]
[1744335380184,6.50577,1537.1,1536.7,0.15483405]
[1744335380185,6.50577,1537.1,1536.7,6.66222405]
[1744335380494,1.3137,1537.4,1536.7,0.15483405]
[1744335380699,1.3137,1537.7,1536.9,3.0]
[1744335380997,6.50135,1538.2,1537.7,7.83534]
[1744335381309,6.50237,1537.9,1537.8,0.15483405]
[1744335381466,6.50231,1538.0,1537.3,1.3323]
[1744335381467,6.50343,1537.7,1537.3,1.3323]
[1744335381671,6.50325,1537.7,1537.4,0.15483405]
[1744335382207,6.50406,1537.5,1537.4,0.15483405]
[1744335382411,6.50326,1537.7,1537.3,6.50488]
[1744335382608,6.50326,1537.7,1537.2,6.50533]
[1744335382778,6.50387,1537.6,1537.2,6.50532]
[1744335383399,6.50237,1537.9,1536.9,10.83864]
[1744335383607,6.50537,1537.2,1536.9,4.3323]
[1744335383910,1.8637,1537.5,1536.5,10.08046666]
[1744335384207,1.8637,1537.5,1536.5,6.50802]
[1744335384208,6.50686,1536.9,1536.5,6.50802]
[1744335384506,13.01206,1537.1,1536.7,6.50725]
[1744335385615,6.50627,1537.0,1536.6,6.50758]
[1744335385817,6.50627,1537.0,1536.6,13.01529]
[1744335386116,6.50627,1537.0,1536.6,6.50758]
[1744335386675,6.50539,1537.2,1536.7,1.3221]
[1744335386872,6.50661,1536.9,1536.1,6.5096]
[1744335387076,6.50762,1536.7,1536.3,7.83095]
[1744335387309,6.50762,1536.7,1536.4,3.0]
[1744335387815,6.50762,1536.7,1536.3,7.83095]
[1744335388175,6.50762,1536.7,1536.3,14.33988]
[1744335388598,6.50708,1536.8,1536.4,9.50854]
[1744335388804,1.3507,1538.5,1536.9,6.24916211]
[1744335389135,1.3507,1538.8,1538.2,6.50089]
[1744335389279,1.3507,1538.8,1538.3,6.50068]
[1744335389620,6.49915,1538.7,1538.1,6.50126]
[1744335389822,6.49822,1538.9,1538.0,9.50193]
[1744335389979,6.60035,1538.4,1537.9,7.82442]
[1744335390178,0.1,1538.4,1537.9,7.82419]
[1744335390405,0.1,1538.4,1537.9,1.3221]
[1744335390620,0.1,1538.4,1538.0,6.50184]
[1744335390930,0.1,1538.4,1538.2,6.50086]
[1744335391084,0.1,1538.4,1538.1,13.00236]
[1744335391287,0.1,1538.4,1538.2,6.50109]
[1744335391611,0.1,1538.4,1538.3,10.82278]
[1744335391922,0.1,1538.4,1538.3,23.79078]
[1744335392424,0.1,1538.4,1538.3,1.3221]
[1744335392623,0.1,1538.4,1538.3,7.82278]
[1744335393143,0.1,1538.4,1538.2,6.50109]
[1744335393287,0.1,1538.4,1538.3,6.50068]
[1744335394633,0.1,1538.4,1538.2,6.50109]
[1744335394846,0.1,1538.4,1538.3,6.50068]
[1744335395136,0.1,1538.4,1538.1,11.41226666]
[1744335395431,0.1,1538.4,1538.1,4.91101666]
[1744335395596,0.1,1538.4,1538.3,6.50068]
[1744335395796,0.1,1538.4,1538.1,4.91101666]
[1744335395997,0.1,1538.4,1538.1,1.3388]
[1744335396230,6.60035,1538.4,1538.1,1.3388]
[1744335396911,6.60035,1538.4,1538.0,6.50166]
[1744335397233,6.50131,1538.2,1537.8,1.3388]
[1744335397401,7.81719,1538.3,1537.9,6.50235]
[1744335397605,6.50133,1538.2,1537.8,1.3388]
[1744335397823,6.50276,1537.9,1537.5,1.3388]
[1744335398023,0.650276,1537.9,1537.2,2.48053041]
[1744335398333,6.5039,1537.6,1537.2,7.84413]
[1744335398830,6.50438,1537.5,1537.0,23.04109666]
[1744335399127,6.50498,1537.3,1537.0,16.53521666]
[1744335399438,13.00925,1537.4,1537.0,10.07838666]
[1744335399926,13.00925,1537.4,1536.7,7.38119728]
[1744335399927,6.50536,1537.2,1536.7,17.46066394]
[1744335400133,6.50593,1537.1,1536.7,16.58669666]
[1744335401347,6.50534,1537.2,1536.8,6.50697]
[1744335401544,6.50575,1537.1,1536.8,6.50697]
[1744335401709,6.50534,1537.2,1536.8,6.50697]
[1744335402047,1.3057,1537.4,1536.7,10.07960666]
[1744335402250,6.50556,1537.2,1536.9,0.12253989]
[1744335402554,6.50338,1537.7,1537.0,3.57221666]
[1744335402720,6.50321,1537.7,1536.9,1.2795]
[1744335402928,6.50535,1537.2,1537.0,0.12699403]
[1744335403311,6.50497,1537.3,1537.0,0.12699403]
[1744335403655,6.50497,1537.3,1536.9,6.5064]
[1744335403857,6.50497,1537.3,1537.1,0.1254382]
[1744335404050,6.50497,1537.3,1536.9,6.5064]
[1744335404453,6.50497,1537.3,1537.0,0.1254382]
[1744335404825,6.50575,1537.1,1537.0,0.1254382]
[1744335405033,7.81068,1537.3,1536.8,6.50696]
[1744335405327,6.50454,1537.4,1537.0,6.50592]
[1744335405537,6.50415,1537.5,1537.1,6.50557]
[1744335405858,6.50406,1537.5,1536.7,6.57221666]
[1744335406021,6.50509,1537.3,1536.8,6.50668]
[1744335406217,6.5048,1537.4,1537.0,6.50602]
[1744335406413,13.00965,1537.4,1537.0,6.50602]
[1744335406649,6.50492,1537.3,1536.9,13.01286]
[1744335406853,6.50548,1537.2,1536.8,6.50701]
[1744335407030,13.01114,1537.2,1536.8,6.50701]
[1744335407229,6.50576,1537.1,1536.7,10.07960666]
[1744335407429,6.50553,1537.2,1536.7,6.50742]
[1744335407626,6.50448,1537.4,1536.8,6.50663]
[1744335407831,6.50555,1537.2,1536.8,6.50663]
[1744335408591,1.3057,1538.1,1537.1,3.57221666]
[1744335408732,1.4057,1538.4,1537.8,3.57221666]
[1744335408937,6.50137,1538.2,1537.7,6.50296]
[1744335409168,6.50243,1537.9,1537.5,13.07590666]
[1744335409408,6.50243,1537.9,1537.5,16.57981666]
[1744335409675,6.50243,1537.9,1537.5,6.50369]
[1744335409847,6.50243,1537.9,1537.5,13.0075]
[1744335410668,6.50243,1537.9,1537.6,6.50363]
[1744335410883,6.50201,1538.0,1537.6,6.50363]
[1744335411376,6.50259,1537.9,1537.5,6.50398]
[1744335411680,6.50125,1538.2,1537.8,6.50274]
[1744335411860,6.50068,1538.3,1537.8,6.50263]
[1744335412065,0.1,1538.4,1538.1,6.50118]
[1744335412872,6.60032,1538.4,1538.0,6.50173]
[1744335413171,6.50089,1538.3,1537.9,6.50235]
[1744335413333,0.1,1538.4,1538.2,6.50086]
[1744335413732,0.1,1538.4,1538.3,6.50068]
[1744335414136,6.60043,1538.4,1538.1,1.2795]
[1744335414442,6.60043,1538.4,1538.0,6.50184]
[1744335414782,0.1,1538.4,1538.3,6.50068]
[1744335415977,0.1,1538.4,1538.3,9.50068]
[1744335416169,6.49706,1539.2,1538.7,6.49868]
[1744335416366,7.8017,1539.3,1538.8,12.99669]
[1744335416662,1.3052,1539.3,1539.0,6.4977]
[1744335416863,1.3052,1539.3,1538.4,11.43867666]
[1744335416864,6.49665,1539.3,1538.7,9.49895]
[1744335417062,6.49738,1539.1,1538.7,9.49895]
[1744335417263,1.29946,1539.1,1538.4,13.00026]
[1744335417496,1.29946,1539.1,1538.4,6.5]
[1744335417994,1.29946,1539.1,1538.3,1.3662]
[1744335417995,6.49813,1539.0,1538.6,6.49935]
[1744335418994,12.99615,1539.0,1538.6,6.49935]
[1744335419160,12.99615,1539.0,1538.5,6.49961]
[1744335419356,6.49824,1538.9,1538.4,6.5002]
[1744335419595,12.99772,1538.8,1538.4,6.5002]
[1744335419888,12.99772,1538.8,1538.3,7.86684]
[1744335419889,6.49919,1538.7,1538.3,6.5005]
[1744335420591,6.5002,1538.5,1538.1,6.5015]
[1744335420793,6.49951,1538.6,1538.1,6.50123]
[1744335421156,6.49986,1538.5,1538.1,6.50123]
[1744335421495,6.50101,1538.3,1537.8,7.86897]
[1744335421679,12.99999,1538.5,1538.0,6.50162]
[1744335421915,6.49941,1538.6,1538.0,0.49459063]
[1744335422198,20.41229,1538.7,1538.3,13.00111]
[1744335422364,19.10704,1538.7,1538.3,7.86666]
[1744335422708,6.50008,1538.5,1538.1,6.50129]
[1744335422998,2.605149,1538.5,1537.9,1.3662]
[1744335423202,6.50071,1538.3,1538.0,0.22]
[1744335423503,19.10701,1538.7,1538.2,6.50107]
[1744335423803,19.10701,1538.7,1538.3,13.00118]
[1744335423973,12.608,1538.7,1538.4,6.50009]
[1744335425105,7.80382,1538.8,1538.4,13.00015]
[1744335425275,6.49776,1539.0,1538.6,6.49937]
[1744335425481,6.49733,1539.1,1538.7,6.49893]
[1744335425681,6.49733,1539.1,1538.6,6.49936]
[1744335425893,6.49733,1539.1,1538.4,7.93841666]
[1744335425894,6.841,1539.0,1538.4,1.3662]
[1744335426200,6.50009,1538.5,1538.1,3.49497085]
[1744335426402,6.50009,1538.5,1537.8,7.54893993]
[1744335426403,13.00279,1538.2,1537.8,6.50249]
[1744335426563,6.50168,1538.1,1537.7,7.86921]
[1744335426765,6.50168,1538.1,1537.7,14.37217]
[1744335427309,7.80548,1538.4,1537.7,1.3662]
[1744335427600,6.50265,1537.9,1537.5,6.5038]
[1744335427802,13.00529,1537.9,1537.5,6.5038]
[1744335428109,6.50282,1537.8,1537.4,7.87068]
[1744335428404,6.50449,1537.4,1537.1,1.3662]
[1744335428587,6.50449,1537.4,1537.3,8.63601656]
[1744335428966,7.80969,1537.4,1537.3,8.63601656]
[1744335429991,11.017581,1537.4,1537.3,8.63601656]
[1744335430194,6.50575,1537.1,1537.0,9.92759232]
[1744335431103,6.50618,1537.0,1536.5,6.50806]
[1744335431279,6.50613,1537.1,1536.5,6.99573952]
[1744335431485,6.50664,1536.9,1536.5,6.50827]
[1744335431886,6.50799,1536.6,1536.1,7.96424]
[1744335432098,6.50765,1536.7,1536.3,6.50914]
[1744335432781,6.50702,1536.8,1536.3,6.5089]
[1744335433005,25.28057,1536.9,1536.5,6.50803]
[1744335433190,6.50709,1536.8,1536.4,6.5084]
[1744335433521,6.50709,1536.8,1536.3,6.5088]
[1744335433816,0.650709,1536.8,1536.3,6.50909]
[1744335434015,6.50736,1536.8,1536.3,13.01795]
[1744335434317,6.50659,1537.0,1536.2,3.57221666]
[1744335434318,6.50668,1536.9,1536.4,6.50844]
[1744335434614,6.50583,1537.1,1536.6,6.50781]
[1744335434774,6.50583,1537.1,1536.7,6.50729]
[1744335434980,13.01191,1537.1,1536.7,6.50742]
[1744335435215,7.84249,1537.2,1536.7,6.50722]
[1744335435416,10.499391,1537.4,1536.5,8.34087953]
[1744335435724,7.84183,1537.4,1537.0,6.506]
[1744335435881,6.50495,1537.3,1536.8,6.50697]
[1744335436232,6.50495,1537.3,1536.5,8.34096953]
[1744335436233,6.50596,1537.1,1536.7,6.50744]
[1744335436380,6.50493,1537.3,1536.5,8.34068953]
[1744335436576,6.50665,1536.9,1536.5,7.86224]
[1744335436822,1.337,1536.9,1536.3,3.0]
[1744335437002,6.50669,1536.9,1536.5,6.5081]
[1744335437390,6.50645,1537.0,1536.5,6.5081]
[1744335437590,6.50581,1537.1,1536.7,6.50715]
[1744335437804,25.28404,1537.2,1536.8,6.5067]
[1744335438002,6.50626,1537.0,1536.7,1.3543]
[1744335438198,6.50682,1536.9,1536.5,1.9]
[1744335438383,6.50718,1536.8,1536.5,1.9]
[1744335438885,6.50577,1537.1,1536.7,6.50729]
[1744335438886,6.50593,1537.1,1536.7,6.50729]
[1744335439093,13.01197,1537.1,1536.7,6.50729]
[1744335439296,6.50593,1537.1,1536.7,6.50729]
[1744335439817,18.77846,1537.2,1536.8,13.01346]
[1744335439986,6.50532,1537.3,1536.9,13.01288]
[1744335440817,6.50533,1537.2,1536.9,6.50643]
[1744335441207,6.50532,1537.3,1536.9,6.50641]
[1744335441421,7.84114,1537.5,1536.9,3.0]
[1744335441718,6.50496,1537.3,1536.9,9.50643]
[1744335441939,13.01015,1537.3,1536.9,3.0]
[1744335442087,6.50496,1537.3,1536.9,3.0]
[1744335442286,6.50535,1537.2,1536.9,3.0]
[1744335442682,6.50607,1537.1,1536.8,3.0]
[1744335442881,7.8411,1537.5,1536.8,6.50677]
[1744335443105,6.50594,1537.1,1536.5,10.07136577]
[1744335443313,6.50594,1537.1,1536.7,9.50739]
[1744335443518,6.50594,1537.1,1536.7,16.01467]
[1744335443728,6.50594,1537.1,1536.7,16.01452]
[1744335443895,6.50698,1536.9,1536.6,3.0]
[1744335444226,6.50625,1537.0,1536.6,6.50783]
[1744335444397,6.50553,1537.2,1536.8,6.50701]
[1744335444597,13.0111,1537.2,1536.8,6.50701]
[1744335444994,6.50495,1537.3,1536.9,6.50622]
[1744335445400,13.01021,1537.3,1536.9,6.50622]
[1744335445613,6.50536,1537.2,1536.9,6.50622]
[1744335446025,6.50536,1537.2,1536.8,13.50037146]
[1744335446227,13.01096,1537.2,1536.8,6.99335146]
[1744335446437,6.50536,1537.2,1536.8,13.50020146]
[1744335446604,6.50497,1537.3,1536.9,6.50642]
[1744335446803,6.50448,1537.4,1536.8,6.99329146]
[1744335447031,6.50602,1537.1,1536.8,3.0]
[1744335447548,6.50601,1537.1,1536.8,3.48086926]
[1744335447704,6.50636,1537.0,1536.6,6.50781]
[1744335447899,6.50674,1536.9,1536.6,6.50781]
[1744335448938,6.50618,1537.0,1536.4,8.34058425]
[1744335449139,6.50821,1536.6,1536.2,6.50937]
[1744335449309,6.50821,1536.6,1536.3,3.0]
[1744335449644,6.50787,1536.6,1536.1,1.3623]
[1744335449803,6.50872,1536.4,1536.1,0.1]
[1744335450010,6.50932,1536.3,1536.1,0.1]
[1744335451302,6.50956,1536.2,1536.1,0.1]
[1744335452805,8.42606,1536.2,1536.1,0.1]
[1744335453007,0.55,1535.9,1535.2,7.46630053]
[1744335453248,0.55,1535.9,1535.2,13.97994053]
[1744335453249,6.51212,1535.6,1535.2,13.97994053]
[1744335453462,24.61081,1535.8,1535.3,6.513]
[1744335453637,6.51084,1535.9,1535.4,6.51292]
[1744335453949,13.02206,1535.9,1535.5,9.5124]
[1744335454155,13.02206,1535.9,1535.5,6.5124]
[1744335454957,6.51043,1536.0,1535.6,1.2623]
[1744335455158,6.51117,1535.9,1535.6,4.2623]
[1744335455555,6.5111,1535.9,1535.6,4.2623]
[1744335455851,6.50999,1536.1,1535.7,6.63773286]
[1744335456155,6.51043,1536.0,1535.7,0.12624286]
[1744335456324,6.50999,1536.1,1535.7,0.12624286]
[1744335456325,6.50999,1536.1,1535.7,6.63789286]
[1744335456525,6.50999,1536.1,1535.7,6.63771286]
[1744335456833,6.50999,1536.1,1535.7,13.14921286]
[1744335457037,7.87536,1536.4,1536.0,6.51026]
[1744335457237,7.87536,1536.4,1536.1,0.13578965]
[1744335458431,14.38438,1536.4,1536.1,0.13578965]
[1744335458762,6.5092,1536.3,1536.1,0.13578965]
[1744335458927,6.50956,1536.2,1536.1,0.13578965]
[1744335459123,13.01941,1536.2,1535.8,9.51116]
[1744335459478,13.01938,1536.2,1535.8,9.51116]
[1744335459655,6.51101,1535.9,1535.6,4.2623]
[1744335459847,13.02045,1536.1,1535.7,6.51152]
[1744335460043,6.51019,1536.1,1535.7,6.51152]
[1744335460237,6.51019,1536.1,1535.7,13.02304]
[1744335460437,6.51019,1536.1,1535.7,6.51152]
[1744335460852,13.02043,1536.1,1535.7,6.51152]
[1744335461064,6.51019,1536.1,1535.7,6.51152]
[1744335461639,6.51042,1536.0,1535.7,6.51152]
[1744335461839,6.51042,1536.0,1535.6,14.28638]
[1744335462143,6.51042,1536.0,1535.6,7.77434]
[1744335462343,6.51134,1535.8,1535.4,8.31177517]
[1744335462576,6.51134,1535.8,1535.5,3.0]
[1744335463243,6.51177,1535.7,1535.4,4.3119]
[1744335463445,6.51177,1535.7,1535.4,10.82479]
[1744335463653,6.51204,1535.7,1535.4,4.3119]
[1744335463943,6.5119,1535.7,1535.4,1.3119]
[1744335464777,6.5119,1535.7,1535.5,3.0]
[1744335466189,6.51144,1535.8,1535.5,3.0]
[1744335466392,6.51141,1535.8,1535.5,3.0]
[1744335466893,6.51175,1535.7,1535.5,3.0]
[1744335467203,1.302316,1535.7,1535.2,6.5138]
[1744335467491,1.302316,1535.7,1535.0,0.231074]
[1744335467492,6.51367,1535.3,1535.0,0.231074]
[1744335467988,6.51382,1535.2,1535.0,0.231074]
[1744335468166,13.02788,1535.2,1535.0,0.231074]
[1744335468572,6.51382,1535.2,1535.0,0.231074]
[1744335469299,19.04681,1535.8,1535.4,6.51277]
[1744335469601,24.27482,1535.8,1535.4,6.51277]
[1744335469967,7.79413,1536.0,1535.4,0.649603]
[1744335470172,6.51069,1536.0,1535.7,6.51167]
[1744335470371,6.51069,1536.0,1535.7,7.01091504]
[1744335470573,6.51069,1536.0,1535.7,6.96091504]
[1744335471171,6.51069,1536.0,1535.7,0.49924504]
[1744335471374,6.51069,1536.0,1535.6,16.02387]
[1744335471696,13.02202,1535.9,1535.5,6.5124]
[1744335471863,6.51093,1535.9,1535.5,13.02477]
[1744335473706,6.51093,1535.9,1535.6,6.5121]
[1744335474301,1.2835,1536.3,1535.5,0.49241536]
[1744335474510,14.30195,1536.3,1535.9,6.51069]
[1744335474806,6.50875,1536.4,1536.0,13.02047]
[1744335474969,6.50875,1536.4,1536.1,6.5099]
[1744335476414,6.50971,1536.2,1535.9,3.0]
[1744335476587,6.50962,1536.2,1535.9,3.0]
[1744335476914,6.5092,1536.3,1535.8,1.2795]
[1744335477117,6.5092,1536.3,1535.9,6.51067]
[1744335477320,6.5092,1536.3,1535.9,13.02136]
[1744335477493,13.01857,1536.3,1535.9,6.51067]
[1744335477880,6.51022,1536.1,1535.8,1.76171467]
[1744335478082,6.51098,1535.9,1535.6,6.51206]
[1744335478288,6.51098,1535.9,1535.5,7.81383]
[1744335478780,6.51098,1535.9,1535.6,0.94374319]
[1744335479183,6.51163,1535.8,1535.6,0.94374319]
[1744335479388,6.51163,1535.8,1535.4,16.02574]
[1744335479613,13.02117,1536.0,1535.5,0.59045126]
[1744335479816,6.51048,1536.0,1535.6,13.02381]
[1744335480120,6.51084,1535.9,1535.7,0.94460303]
[1744335480419,1.30198,1536.1,1535.8,6.51122]
[1744335480420,6.51004,1536.1,1535.8,6.51122]
[1744335480582,13.02035,1536.1,1535.7,7.45615303]
[1744335480783,6.51042,1536.0,1535.7,7.45615303]
[1744335480985,6.51042,1536.0,1535.8,0.94460303]
[1744335481719,6.51042,1536.0,1535.7,6.51148]
[1744335482028,6.51042,1536.0,1535.6,16.0238]
[1744335482207,6.51042,1536.0,1535.7,0.59043462]
[1744335482407,13.02112,1536.0,1535.7,0.59043462]
[1744335482725,6.51126,1535.8,1535.7,0.59043462]
[1744335482908,6.51298,1535.4,1535.1,1.3017]
[1744335483090,6.51267,1535.5,1535.2,3.0]
[1744335483302,6.51145,1535.8,1535.4,6.51292]
[1744335483502,7.80356,1536.1,1535.7,6.5114]
[1744335483706,14.31379,1536.1,1535.7,6.5114]
[1744335484226,6.51043,1536.0,1535.6,7.81364]
[1744335484573,6.51043,1536.0,1535.7,6.51162]
[1744335484705,6.51043,1536.0,1535.7,7.45622198]
[1744335485237,6.51043,1536.0,1535.7,6.86578177]
[1744335485535,10.564,1536.2,1535.9,6.51065]
[1744335485706,6.50929,1536.3,1535.9,13.02133]
[1744335486037,6.50929,1536.3,1536.0,6.51039]
[1744335486241,6.50929,1536.3,1535.9,6.51065]
[1744335486597,13.01965,1536.2,1535.8,9.5112]
[1744335486805,6.51014,1536.1,1535.8,9.5112]
[1744335487303,6.51014,1536.1,1535.8,10.00698587]
[1744335487523,6.50978,1536.2,1535.8,16.51805587]
[1744335488439,13.01956,1536.2,1535.8,10.00685587]
[1744335488643,6.50978,1536.2,1535.8,10.00685587]
[1744335489051,6.51061,1536.0,1535.9,0.6]
[1744335489343,6.50963,1536.2,1535.9,0.6]
[1744335489556,23.23201,1536.6,1536.1,6.50997]
[1744335489703,7.80058,1536.8,1536.3,6.50914]
[1744335489904,6.50708,1536.8,1536.4,6.50847]
[1744335490148,6.50661,1536.9,1536.5,6.50806]
[1744335490349,6.50801,1536.6,1536.2,7.81111]
[1744335490640,6.50722,1536.8,1536.4,6.50871]
[1744335490864,6.50777,1536.7,1536.3,6.53896]
[1744335491077,6.50914,1536.3,1536.2,1.77825385]
[1744335491257,6.5089,1536.4,1536.2,0.47655385]
[1744335491445,6.50793,1536.6,1536.2,6.50932]
[1744335491641,6.50793,1536.6,1536.3,6.50907]
[1744335491832,6.50747,1536.7,1536.4,1.3587]
[1744335492331,13.01352,1536.9,1536.5,6.50807]
[1744335492564,13.01352,1536.9,1536.4,7.86724]
[1744335492565,2.487102,1536.9,1536.4,1.3587]
[1744335492876,6.50702,1536.8,1536.3,3.0]
[1744335493036,13.01635,1536.6,1536.3,3.0]
[1744335493237,6.50838,1536.5,1536.2,3.49627399]
[1744335493437,6.50888,1536.4,1536.2,0.49627399]
[1744335493636,6.50888,1536.4,1536.1,4.2478]
[1744335493878,6.50934,1536.3,1536.1,1.2478]
[1744335494038,6.50971,1536.2,1535.9,1.2478]
[1744335494367,6.50917,1536.3,1536.0,0.03]
[1744335494971,6.5088,1536.4,1536.0,13.02039]
[1744335495373,6.50836,1536.5,1536.1,6.50971]
[1744335495669,6.50703,1536.8,1536.4,6.50842]
[1744335495870,6.50703,1536.8,1536.5,6.50826]
[1744335496038,6.50703,1536.8,1536.3,6.50892]
[1744335496238,6.50764,1536.7,1536.3,13.01784]
[1744335496733,6.50702,1536.8,1536.3,3.0]
[1744335497067,13.0172,1536.5,1536.3,3.0]
[1744335497258,6.50829,1536.5,1536.1,0.48165629]
[1744335497472,6.50953,1536.3,1536.0,6.06]
[1744335497645,6.50953,1536.3,1536.0,6.51039]
[1744335497834,6.50953,1536.3,1536.0,7.00956372]
[1744335498034,6.50953,1536.3,1536.0,0.49917372]
[1744335498035,13.01897,1536.3,1536.0,0.49917372]
[1744335498352,6.50944,1536.3,1536.1,0.6]
[1744335498946,6.50958,1536.2,1536.1,0.6]
[1744335499264,6.5103,1536.1,1535.8,3.0]
[1744335499463,6.51057,1536.0,1535.7,3.32926426]
[1744335499781,6.51168,1535.7,1535.6,0.4994665]
[1744335499947,13.02378,1535.7,1535.3,7.76104]
[1744335500148,13.02378,1535.7,1535.4,0.59010053]
[1744335500365,13.02378,1535.7,1535.4,1.18020738]
[1744335500582,6.5108,1536.0,1535.4,7.50947164]
[1744335500876,7.75362,1536.2,1535.8,6.51109]
[1744335501577,14.26345,1536.2,1535.8,6.51109]
[1744335502485,6.50962,1536.2,1535.8,6.51109]
[1744335502869,6.51018,1536.1,1535.7,7.75948]
[1744335503069,6.51057,1536.0,1535.7,3.49048408]
[1744335503246,6.51098,1535.9,1535.7,0.49048408]
[1744335503446,6.51098,1535.9,1535.8,0.6]
[1744335503647,6.50914,1536.3,1535.8,7.11122]
[1744335503648,6.51006,1536.1,1535.8,7.11122]
[1744335503867,6.51006,1536.1,1535.8,0.6]
[1744335504072,6.51084,1535.9,1535.8,0.6]
[1744335504685,7.75413,1536.1,1535.8,0.6]
[1744335504856,14.26435,1536.1,1535.8,0.6]
[1744335505056,6.51013,1536.1,1535.8,0.6]
[1744335505284,6.50962,1536.2,1535.8,0.6]
[1744335505446,13.01944,1536.2,1535.8,7.11111]
[1744335506073,17.98816,1536.3,1535.8,1.9408]
[1744335506279,6.50916,1536.3,1536.0,6.51039]
[1744335506581,1.2344,1536.5,1536.0,6.51039]
[1744335506582,13.01522,1536.7,1536.3,6.509]
[1744335506955,13.01622,1536.6,1536.2,7.85036]
[1744335507179,7.74175,1536.8,1536.2,4.3408]
[1744335507340,7.74175,1536.8,1536.3,6.50898]
[1744335507341,6.50803,1536.6,1536.3,6.50898]
[1744335507543,6.50859,1536.5,1536.2,1.81693702]
[1744335507743,6.50793,1536.6,1536.2,8.32647702]
[1744335507986,6.50793,1536.6,1536.2,14.83590702]
[1744335508350,6.50793,1536.6,1536.2,8.32636702]
[1744335509087,6.50832,1536.5,1536.2,8.32636702]
[1744335509298,6.50832,1536.5,1536.2,1.81693702]
[1744335509800,6.50898,1536.4,1536.1,3.0]
[1744335509984,6.50976,1536.2,1535.9,4.3408]
[1744335510688,6.50932,1536.3,1535.9,10.85158]
[1744335510867,6.50932,1536.3,1535.9,17.36227]
[1744335511063,1.2344,1536.4,1535.9,4.3408]
[1744335511281,1.2344,1536.4,1535.9,3.0]
[1744335511282,6.5098,1536.2,1535.9,3.0]
[1744335511592,7.74354,1536.4,1535.9,3.0]
[1744335511593,6.50931,1536.3,1535.9,9.51066]
[1744335511780,6.50931,1536.3,1536.0,6.51023]
[1744335512159,6.50913,1536.4,1536.1,6.50987]
[1744335512497,6.50788,1536.6,1536.3,6.50909]
[1744335512795,6.50751,1536.7,1536.3,6.50894]
[1744335512983,6.50751,1536.7,1536.4,6.50851]
[1744335513365,6.50709,1536.8,1536.4,6.50851]
[1744335513571,13.01442,1536.8,1536.4,6.50851]
[1744335514407,6.50747,1536.7,1536.4,6.50851]
[1744335514612,6.50747,1536.7,1536.2,4.3408]
[1744335514613,6.50895,1536.4,1536.2,1.3408]